fUST/lending_fUST_20260613
["ID","MTS","AMOUNT","RATE_DAILY","PERIOD"]
[424929283,1781285442000,-461.83253958,0.0002422,2]
[424929285,1781285442000,-197.4954729,0.0002422,2]
[424929286,1781285442000,-415.75887556,0.0002422,2]
[424929282,1781285442000,-356.6162121,0.0002422,2]
[424929281,1781285442000,-318.61818071,0.0002422,2]
[424929278,1781285442000,-500.0,0.00024219,2]
[424929298,1781285442000,-382.2926952,0.0002422,2]
[424929290,1781285442000,-382.33498813,0.0002422,2]
[424929291,1781285442000,-160.44536407,0.0002422,2]
[424929289,1781285442000,-209.94758048,0.0002422,2]
[424929299,1781285442000,-165.00781202,0.0002422,2]
[424929294,1781285442000,-398.22841209,0.0002422,2]
[424929296,1781285442000,-307.3450276,0.0002422,2]
[424929295,1781285442000,-309.34261713,0.0002422,2]
[424929301,1781285442000,-194.95318315,0.0002422,2]
[424929292,1781285442000,-174.87537824,0.0002422,2]
[424929293,1781285442000,-361.84910549,0.0002422,2]
[424929300,1781285442000,-457.65143791,0.0002422,2]
[424929297,1781285442000,-334.67200649,0.0002422,2]
[424929303,1781285442000,-160.13297818,0.0002422,2]
[424929266,1781285442000,-2814.154456,0.00024099,2]
[424929288,1781285442000,-359.83982395,0.0002422,2]
[424929269,1781285442000,-218.590137,0.00024099,2]
[424929245,1781285442000,-151.0,0.00024099,2]
[424929273,1781285442000,-269.046047,0.000241,2]
[424929302,1781285442000,-152.32922807,0.0002422,2]
[424929241,1781285442000,-269.046047,0.00024099,2]
[424929247,1781285442000,-151.0,0.00024099,2]
[424929243,1781285442000,-151.0,0.00024099,2]
[424929246,1781285442000,-151.0,0.00024099,2]
[424929242,1781285442000,-269.046047,0.00024099,2]
[424929244,1781285442000,-151.0,0.00024099,2]
[424929249,1781285442000,-151.0,0.00024099,2]
[424929248,1781285442000,-151.0,0.00024099,2]
[424929251,1781285442000,-225.690161,0.00024099,2]
[424929260,1781285442000,-2814.154456,0.00024099,2]
[424929250,1781285442000,-151.0,0.00024099,2]
[424929259,1781285442000,-2814.154456,0.00024099,2]
[424929252,1781285442000,-151.0,0.00024099,2]
[424929253,1781285442000,-151.0,0.00024099,2]
[424929258,1781285442000,-2814.154456,0.00024099,2]
[424929254,1781285442000,-212.032475,0.00024099,2]
[424929255,1781285442000,-2814.154456,0.00024099,2]
[424929257,1781285442000,-2814.154456,0.00024099,2]
[424929256,1781285442000,-2814.154456,0.00024099,2]
[424929261,1781285442000,-2814.154456,0.00024099,2]
[424929263,1781285442000,-2814.154456,0.00024099,2]
[424929270,1781285442000,-218.590137,0.00024099,2]
[424929262,1781285442000,-2814.154456,0.00024099,2]
[424929271,1781285442000,-151.0,0.00024099,2]
[424929264,1781285442000,-2814.154456,0.00024099,2]
[424929272,1781285442000,-269.046047,0.000241,2]
[424929267,1781285442000,-218.590137,0.00024099,2]
[424929265,1781285442000,-2814.154456,0.00024099,2]
[424929268,1781285442000,-218.590137,0.00024099,2]
[424929314,1781285442000,-500.0,0.00024358,2]
[424929350,1781285442000,-280.13649988,0.00024359,2]
[424929312,1781285442000,-500.0,0.00024358,2]
[424929338,1781285442000,-435.06859533,0.00024359,2]
[424929337,1781285442000,-491.20075363,0.00024359,2]
[424929339,1781285442000,-558.3401025,0.00024359,2]
[424929343,1781285442000,-395.15342369,0.00024359,2]
[424929345,1781285442000,-320.15320788,0.00024359,2]
[424929346,1781285442000,-573.93287851,0.00024359,2]
[424929347,1781285442000,-552.59325476,0.00024359,2]
[424929349,1781285442000,-462.11558629,0.00024359,2]
[424929351,1781285442000,-210.93728108,0.00024359,2]
[424929348,1781285442000,-656.26511632,0.00024359,2]
[424929353,1781285442000,-538.242287,0.00024359,2]
[424929344,1781285442000,-156.7080227,0.00024359,2]
[424929354,1781285442000,-451.26658687,0.00024359,2]
[424929356,1781285442000,-278.6,0.00024359,2]
[424929358,1781285442000,-151.0,0.00024359,2]
[424929364,1781285442000,-151.0,0.00024359,2]
[424929355,1781285442000,-151.0,0.00024359,2]
[424929357,1781285442000,-151.0,0.00024359,2]
[424929359,1781285442000,-151.0,0.00024359,2]
[424929362,1781285442000,-269.046047,0.00024359,2]
[424929363,1781285442000,-269.046047,0.00024359,2]
[424929360,1781285442000,-269.046047,0.00024359,2]
[424929361,1781285442000,-269.046047,0.00024359,2]
[424929365,1781285442000,-151.0,0.00024359,2]
[424929367,1781285442000,-2814.154456,0.00024359,2]
[424929370,1781285442000,-2814.154466,0.00024359,2]
[424929369,1781285442000,-2814.154456,0.00024359,2]
[424929366,1781285442000,-2814.154456,0.00024359,2]
[424929311,1781285442000,-500.0,0.00024358,2]
[424929335,1781285442000,-486.06618907,0.00024359,2]
[424929334,1781285442000,-383.16495689,0.00024359,2]
[424929352,1781285442000,-175.83721357,0.00024359,2]
[424929331,1781285442000,-218.590137,0.00024358,2]
[424929336,1781285442000,-480.21007581,0.00024359,2]
[424929313,1781285442000,-500.0,0.00024358,2]
[424929304,1781285442000,-217.49542691,0.0002422,2]
[424929308,1781285442000,-300.44412609,0.00024257,2]
[424929310,1781285442000,-500.0,0.00024356,2]
[424929307,1781285442000,-154.36595496,0.0002422,2]
[424929306,1781285442000,-160.23904989,0.0002422,2]
[424929309,1781285442000,-1879.40263947,0.00024347,2]
[424929316,1781285442000,-500.0,0.00024358,2]
[424929315,1781285442000,-500.0,0.00024358,2]
[424929319,1781285442000,-269.046047,0.00024358,2]
[424929323,1781285442000,-151.0,0.00024358,2]
[424929318,1781285442000,-269.046047,0.00024358,2]
[424929317,1781285442000,-745.53,0.00024358,2]
[424929325,1781285442000,-2814.154456,0.00024358,2]
[424929305,1781285442000,-239.19014667,0.0002422,2]
[424929342,1781285442000,-456.27310896,0.00024359,2]
[424929326,1781285442000,-2814.154456,0.00024358,2]
[424929324,1781285442000,-502.9351211,0.00024358,2]
[424929327,1781285442000,-2814.154456,0.00024358,2]
[424929322,1781285442000,-151.0,0.00024358,2]
[424929328,1781285442000,-2814.154456,0.00024358,2]
[424929321,1781285442000,-269.046047,0.00024358,2]
[424929330,1781285442000,-218.590137,0.00024358,2]
[424929340,1781285442000,-478.33868216,0.00024359,2]
[424929320,1781285442000,-269.046047,0.00024358,2]
[424929333,1781285442000,-11655.09,0.00024358,2]
[424929341,1781285442000,-333.78074752,0.00024359,2]
[424929329,1781285442000,-218.590137,0.00024358,2]
[424929332,1781285442000,-218.590144,0.00024358,2]
[424929425,1781285443000,-308.73190991,0.00024589,2]
[424929422,1781285443000,-320.26595636,0.00024589,2]
[424929413,1781285443000,-244.1920023,0.00024589,2]
[424929426,1781285443000,-648.0882521,0.00024589,2]
[424929429,1781285443000,-461.01754141,0.00024656,2]
[424929423,1781285443000,-478.38029334,0.00024589,2]
[424929411,1781285443000,-542.77365824,0.00024589,2]
[424929420,1781285443000,-389.9063663,0.00024589,2]
[424929421,1781285443000,-192.00125551,0.00024589,2]
[424929419,1781285443000,-304.65845614,0.00024589,2]
[424929417,1781285443000,-183.90927421,0.00024589,2]
[424929416,1781285443000,-330.01562403,0.00024589,2]
[424929428,1781285443000,-11655.09,0.00024626,2]
[424929424,1781285443000,-320.47809978,0.00024589,2]
[424929427,1781285443000,-420.0,0.0002461,2]
[424929435,1781285443000,-344.99087948,0.00024658,2]
[424929432,1781285443000,-419.89516097,0.00024656,2]
[424929442,1781285443000,-151.0,0.00024725,2]
[424929443,1781285443000,-151.0,0.00024725,2]
[424929431,1781285443000,-394.99094581,0.00024656,2]
[424929437,1781285443000,-200.0,0.00024658,2]
[424929439,1781285443000,-152.0,0.00024659,30]
[424929440,1781285443000,-151.0,0.000247,8]
[424929436,1781285443000,-264.27,0.00024658,2]
[424929441,1781285443000,-151.0,0.00024725,2]
[424929438,1781285443000,-152.0,0.00024659,30]
[424929434,1781285443000,-497.60567393,0.00024658,2]
[424929444,1781285443000,-151.0,0.00024725,2]
[424929456,1781285443000,-11655.09,0.00024726,2]
[424929430,1781285443000,-158.43554092,0.00024656,2]
[424929415,1781285443000,-573.4390428,0.00024589,2]
[424929445,1781285443000,-500.0,0.00024726,2]
[424929412,1781285443000,-597.34261813,0.00024589,2]
[424929371,1781285443000,-264.27,0.00024384,2]
[424929372,1781285443000,-431.839745,0.00024393,2]
[424929373,1781285443000,-500.0,0.00024588,2]
[424929380,1781285443000,-151.0,0.00024589,2]
[424929382,1781285443000,-151.0,0.00024589,2]
[424929378,1781285443000,-151.0,0.00024589,2]
[424929374,1781285443000,-157.31066,0.00024589,2]
[424929376,1781285443000,-151.0,0.00024589,2]
[424929384,1781285443000,-151.0,0.00024589,2]
[424929385,1781285443000,-151.0,0.00024589,2]
[424929387,1781285443000,-300.52697077,0.00024589,2]
[424929389,1781285443000,-247.33493667,0.00024589,2]
[424929393,1781285443000,-563.09584954,0.00024589,2]
[424929391,1781285443000,-534.92431815,0.00024589,2]
[424929403,1781285443000,-560.0601139,0.00024589,2]
[424929398,1781285443000,-210.8903972,0.00024589,2]
[424929395,1781285443000,-615.77671944,0.00024589,2]
[424929397,1781285443000,-477.92727107,0.00024589,2]
[424929401,1781285443000,-616.15411506,0.00024589,2]
[424929399,1781285443000,-654.93433817,0.00024589,2]
[424929400,1781285443000,-736.79100635,0.00024589,2]
[424929404,1781285443000,-573.5024822,0.00024589,2]
[424929402,1781285443000,-601.68878249,0.00024589,2]
[424929405,1781285443000,-163.29469564,0.00024589,2]
[424929408,1781285443000,-281.57775578,0.00024589,2]
[424929407,1781285443000,-219.36839425,0.00024589,2]
[424929409,1781285443000,-185.18290908,0.00024589,2]
[424929410,1781285443000,-349.75075647,0.00024589,2]
[424929414,1781285443000,-464.01392569,0.00024589,2]
[424929418,1781285443000,-610.20191721,0.00024589,2]
[424929455,1781285443000,-745.53,0.00024726,2]
[424929433,1781285443000,-248.80283696,0.00024658,2]
[424929447,1781285443000,-556.35515401,0.00024726,2]
[424929483,1781285443000,-158.15406356,0.00024727,2]
[424929485,1781285443000,-176.37345103,0.00024727,2]
[424929495,1781285443000,-177.95870774,0.00024727,2]
[424929487,1781285443000,-560.27299975,0.00024727,2]
[424929486,1781285443000,-166.79244301,0.00024727,2]
[424929494,1781285443000,-717.65638266,0.00024727,2]
[424929488,1781285443000,-166.2125712,0.00024727,2]
[424929493,1781285443000,-204.27240926,0.00024727,2]
[424929484,1781285443000,-875.02015509,0.00024727,2]
[424929492,1781285443000,-166.48413344,0.00024727,2]
[424929490,1781285443000,-421.87456217,0.00024727,2]
[424929489,1781285443000,-154.66655035,0.00024727,2]
[424929491,1781285443000,-351.67442713,0.00024727,2]
[424929496,1781285443000,-195.63852068,0.00024727,2]
[424929478,1781285443000,-313.41604539,0.00024727,2]
[424929498,1781285443000,-214.26463432,0.00024727,2]
[424929501,1781285443000,-152.0,0.00024914,30]
[424929499,1781285443000,-1879.40263947,0.00024854,2]
[424929502,1781285443000,-264.27,0.00024932,2]
[424929504,1781285443000,-897.07047833,0.00025096,2]
[424929505,1781285443000,-151.0,0.00025098,2]
[424929509,1781285443000,-264.27,0.00025205,2]
[424929503,1781285443000,-956.55479752,0.00025096,2]
[424929497,1781285443000,-236.22725361,0.00024727,2]
[424929500,1781285443000,-152.0,0.00024865,30]
[424929510,1781285443000,-1879.40263947,0.0002536,2]
[424929506,1781285443000,-151.0,0.00025098,2]
[424929507,1781285443000,-151.0,0.00025098,2]
[424929511,1781285443000,-431.839745,0.0002542,2]
[424929446,1781285443000,-500.0,0.00024726,2]
[424929508,1781285443000,-313.88,0.00025098,2]
[424929475,1781285443000,-500.67112128,0.00024727,2]
[424929513,1781285443000,-676.08,0.0002546,3]
[424929474,1781285443000,-273.3213407,0.00024727,2]
[424929454,1781285443000,-502.93837888,0.00024726,2]
[424929448,1781285443000,-500.0,0.00024726,2]
[424929449,1781285443000,-500.0,0.00024726,2]
[424929453,1781285443000,-500.0,0.00024726,2]
[424929452,1781285443000,-151.0,0.00024726,2]
[424929450,1781285443000,-500.0,0.00024726,2]
[424929451,1781285443000,-151.0,0.00024726,2]
[424929459,1781285443000,-151.0,0.00024727,2]
[424929479,1781285443000,-167.59957809,0.00024727,2]
[424929512,1781285443000,-273411.2791,0.00025444,2]
[424929460,1781285443000,-151.0,0.00024727,2]
[424929463,1781285443000,-327.6611369,0.00024727,2]
[424929461,1781285443000,-151.0,0.00024727,2]
[424929462,1781285443000,-151.0,0.00024727,2]
[424929466,1781285443000,-178.56694253,0.00024727,2]
[424929457,1781285443000,-151.0,0.00024727,2]
[424929464,1781285443000,-574.74743534,0.00024727,2]
[424929476,1781285443000,-241.84937386,0.00024727,2]
[424929468,1781285443000,-744.45347,0.00024727,2]
[424929477,1781285443000,-592.73013553,0.00024727,2]
[424929480,1781285443000,-765.24383802,0.00024727,2]
[424929472,1781285443000,-299.12639633,0.00024727,2]
[424929482,1781285443000,-419.51545693,0.00024727,2]
[424929473,1781285443000,-169.37688414,0.00024727,2]
[424929471,1781285443000,-637.78490954,0.00024727,2]
[424929481,1781285443000,-161.17346123,0.00024727,2]
[424929469,1781285443000,-221.57757976,0.00024727,2]
[424929465,1781285443000,-640.28010108,0.00024727,2]
[424929467,1781285443000,-652.60289299,0.00024727,2]
[424929458,1781285443000,-151.0,0.00024727,2]
[424929470,1781285443000,-162.09658679,0.00024727,2]
[424929556,1781285444000,-313.88,0.0002774,2]
[424929560,1781285444000,-151.0,0.000281,14]
[424929559,1781285444000,-151.0,0.000279,10]
[424929555,1781285444000,-151.0,0.000275,7]
[424929551,1781285444000,-307.30405556,0.000275,2]
[424929549,1781285444000,-431.839745,0.00027474,2]
[424929563,1781285444000,-151.0,0.00029,11]
[424929564,1781285444000,-151.0,0.000291,19]
[424929552,1781285444000,-151.0,0.000275,7]
[424929546,1781285444000,-413.402919,0.00027397,2]
[424929547,1781285444000,-413.402921,0.00027397,2]
[424929562,1781285444000,-864.0,0.00028921,30]
[424929553,1781285444000,-151.0,0.000275,7]
[424929570,1781285444000,-11655.09,0.00030715,18]
[424929557,1781285444000,-313.88,0.0002774,2]
[424929554,1781285444000,-151.0,0.000275,7]
[424929561,1781285444000,-431.839745,0.00028501,2]
[424929566,1781285444000,-431.839745,0.00029527,2]
[424929567,1781285444000,-151.0,0.0003,10]
[424929565,1781285444000,-180.72062066,0.0002934,3]
[424929576,1781285444000,-151.0,0.000311,11]
[424929569,1781285444000,-151.0,0.000301,10]
[424929568,1781285444000,-151.0,0.0003,7]
[424929577,1781285444000,-151.0,0.000311,14]
[424929574,1781285444000,-151.0,0.00030716,7]
[424929578,1781285444000,-151.0,0.0003181,7]
[424929572,1781285444000,-11655.09,0.00030715,18]
[424929550,1781285444000,-11655.09,0.00027499,18]
[424929558,1781285444000,-307.30405556,0.000278,2]
[424929545,1781285444000,-413.402919,0.00027397,2]
[424929525,1781285444000,-307.30405556,0.00027,2]
[424929540,1781285444000,-413.402919,0.00027397,2]
[424929575,1781285444000,-151.0,0.00030716,7]
[424929521,1781285444000,-307.30405556,0.000267,2]
[424929522,1781285444000,-199.77920436,0.000267,2]
[424929515,1781285444000,-1076.48457399,0.00025649,2]
[424929524,1781285444000,-151.0,0.000268,12]
[424929518,1781285444000,-1111.32,0.000264,2]
[424929516,1781285444000,-151.0,0.000257,19]
[424929517,1781285444000,-720.0,0.00026292,30]
[424929523,1781285444000,-184.52363489,0.000267,2]
[424929514,1781285444000,-338.04,0.0002546,3]
[424929519,1781285444000,-313.88,0.00026419,2]
[424929520,1781285444000,-431.839745,0.00026447,2]
[424929526,1781285444000,-151.0,0.000271,17]
[424929537,1781285444000,-413.402919,0.00027397,2]
[424929528,1781285444000,-413.402919,0.00027397,2]
[424929538,1781285444000,-413.402919,0.00027397,2]
[424929536,1781285444000,-413.402919,0.00027397,2]
[424929527,1781285444000,-307.30405556,0.000273,2]
[424929530,1781285444000,-413.402919,0.00027397,2]
[424929534,1781285444000,-413.402919,0.00027397,2]
[424929529,1781285444000,-413.402919,0.00027397,2]
[424929533,1781285444000,-413.402919,0.00027397,2]
[424929531,1781285444000,-413.402919,0.00027397,2]
[424929535,1781285444000,-413.402919,0.00027397,2]
[424929532,1781285444000,-413.402919,0.00027397,2]
[424929539,1781285444000,-413.402919,0.00027397,2]
[424929543,1781285444000,-413.402919,0.00027397,2]
[424929544,1781285444000,-413.402919,0.00027397,2]
[424929542,1781285444000,-413.402919,0.00027397,2]
[424929548,1781285444000,-155.69301417,0.000274,2]
[424929573,1781285444000,-151.0,0.00030716,7]
[424929541,1781285444000,-413.402919,0.00027397,2]
[424929580,1781285444000,-151.0,0.000321,10]
[424929608,1781285444000,-199.36,0.00033999,2]
[424929615,1781285444000,-745.53,0.00033999,18]
[424929640,1781285444000,-500.0,0.00034083,7]
[424929623,1781285444000,-11655.09,0.00033999,18]
[424929624,1781285444000,-11655.09,0.00033999,18]
[424929625,1781285444000,-11655.09,0.00033999,18]
[424929621,1781285444000,-11655.09,0.00033999,18]
[424929622,1781285444000,-11655.09,0.00033999,18]
[424929614,1781285444000,-745.53,0.00033999,18]
[424929618,1781285444000,-745.53,0.00033999,18]
[424929616,1781285444000,-745.53,0.00033999,18]
[424929617,1781285444000,-745.53,0.00033999,18]
[424929619,1781285444000,-745.53,0.00033999,18]
[424929620,1781285444000,-11655.09,0.00033999,18]
[424929626,1781285444000,-11655.09,0.00033999,18]
[424929639,1781285444000,-500.0,0.00034083,7]
[424929632,1781285444000,-156.0,0.00034,7]
[424929631,1781285444000,-151.0,0.00034,16]
[424929630,1781285444000,-151.0,0.00034,16]
[424929635,1781285444000,-191.00058308,0.00034083,7]
[424929627,1781285444000,-11655.09,0.00033999,18]
[424929637,1781285444000,-500.0,0.00034083,7]
[424929638,1781285444000,-500.0,0.00034083,7]
[424929633,1781285444000,-151.5,0.00034083,7]
[424929634,1781285444000,-151.5,0.00034083,7]
[424929636,1781285444000,-151.5,0.00034083,7]
[424929629,1781285444000,-139452.24526301,0.00034,7]
[424929641,1781285444000,-500.0,0.00034083,7]
[424929571,1781285444000,-11655.09,0.00030715,18]
[424929610,1781285444000,-500.0,0.00033999,18]
[424929611,1781285444000,-217.99,0.00033999,18]
[424929628,1781285444000,-18240.97374101,0.00034,7]
[424929601,1781285444000,-745.53,0.00033998,18]
[424929579,1781285444000,-1000.0,0.00031813,30]
[424929607,1781285444000,-500.0,0.00033999,2]
[424929590,1781285444000,-284.76512,0.00033998,7]
[424929591,1781285444000,-500.0,0.00033998,2]
[424929589,1781285444000,-500.0,0.00033998,18]
[424929581,1781285444000,-151.0,0.000322,12]
[424929583,1781285444000,-151.0,0.000333,17]
[424929584,1781285444000,-151.0,0.0003362,7]
[424929592,1781285444000,-500.0,0.00033998,2]
[424929585,1781285444000,-160.0,0.00033699,3]
[424929586,1781285444000,-11655.09,0.00033989,18]
[424929588,1781285444000,-11655.09,0.00033997,18]
[424929587,1781285444000,-151.0,0.0003399,7]
[424929593,1781285444000,-500.0,0.00033998,2]
[424929582,1781285444000,-151.0,0.000331,17]
[424929600,1781285444000,-745.53,0.00033998,18]
[424929595,1781285444000,-503.5430223,0.00033998,18]
[424929612,1781285444000,-745.53,0.00033999,18]
[424929606,1781285444000,-500.0,0.00033999,2]
[424929613,1781285444000,-745.53,0.00033999,18]
[424929604,1781285444000,-500.0,0.00033999,2]
[424929609,1781285444000,-500.0,0.00033999,18]
[424929605,1781285444000,-500.0,0.00033999,2]
[424929603,1781285444000,-500.0,0.00033999,2]
[424929598,1781285444000,-500.0,0.00033998,18]
[424929594,1781285444000,-500.0,0.00033998,18]
[424929599,1781285444000,-745.53,0.00033998,18]
[424929596,1781285444000,-500.0,0.00033998,18]
[424929602,1781285444000,-11655.09,0.00033998,18]
[424929597,1781285444000,-500.0,0.00033998,18]
[424929679,1781285445000,-151.5,0.00034083,7]
[424929671,1781285445000,-2842.0,0.00034083,7]
[424929675,1781285445000,-2842.0,0.00034083,7]
[424929672,1781285445000,-2842.0,0.00034083,7]
[424929677,1781285445000,-151.5,0.00034083,7]
[424929676,1781285445000,-2860.70472985,0.00034083,7]
[424929670,1781285445000,-2842.0,0.00034083,7]
[424929669,1781285445000,-2842.0,0.00034083,7]
[424929668,1781285445000,-2842.0,0.00034083,7]
[424929673,1781285445000,-2842.0,0.00034083,7]
[424929674,1781285445000,-2842.0,0.00034083,7]
[424929687,1781285445000,-242.5,0.00034083,7]
[424929680,1781285445000,-500.0,0.00034083,7]
[424929690,1781285445000,-230.85758096,0.00034083,7]
[424929692,1781285445000,-797.0,0.00034083,7]
[424929691,1781285445000,-797.0,0.00034083,7]
[424929682,1781285445000,-151.5,0.00034083,7]
[424929684,1781285445000,-151.5,0.00034083,7]
[424929689,1781285445000,-520.30683827,0.00034083,7]
[424929683,1781285445000,-500.0,0.00034083,7]
[424929666,1781285445000,-2842.0,0.00034083,7]
[424929686,1781285445000,-500.0,0.00034083,7]
[424929681,1781285445000,-151.5,0.00034083,7]
[424929678,1781285445000,-151.5,0.00034083,7]
[424929645,1781285445000,-500.0,0.00034083,7]
[424929665,1781285445000,-2842.0,0.00034083,7]
[424929688,1781285445000,-500.0,0.00034083,7]
[424929651,1781285445000,-355.63552091,0.00034083,7]
[424929653,1781285445000,-2842.0,0.00034083,7]
[424929652,1781285445000,-151.89441419,0.00034083,7]
[424929642,1781285445000,-222.19038959,0.00034083,7]
[424929643,1781285445000,-500.0,0.00034083,7]
[424929647,1781285445000,-500.0,0.00034083,7]
[424929646,1781285445000,-248.72329838,0.00034083,7]
[424929649,1781285445000,-500.0,0.00034083,7]
[424929644,1781285445000,-500.0,0.00034083,7]
[424929650,1781285445000,-500.0,0.00034083,7]
[424929648,1781285445000,-500.0,0.00034083,7]
[424929654,1781285445000,-2842.0,0.00034083,7]
[424929657,1781285445000,-2842.0,0.00034083,7]
[424929659,1781285445000,-2842.0,0.00034083,7]
[424929658,1781285445000,-2842.0,0.00034083,7]
[424929656,1781285445000,-2842.0,0.00034083,7]
[424929663,1781285445000,-2842.0,0.00034083,7]
[424929660,1781285445000,-2842.0,0.00034083,7]
[424929655,1781285445000,-2842.0,0.00034083,7]
[424929662,1781285445000,-2842.0,0.00034083,7]
[424929664,1781285445000,-2842.0,0.00034083,7]
[424929661,1781285445000,-2842.0,0.00034083,7]
[424929667,1781285445000,-2842.0,0.00034083,7]
[424929685,1781285445000,-279.5424921,0.00034083,7]
[424929707,1781285445000,-797.0,0.00034083,7]
[424929693,1781285445000,-797.0,0.00034083,7]
[424929727,1781285445000,-186.0,0.0003437,2]
[424929725,1781285445000,-151.0,0.000343,13]
[424929720,1781285445000,-151.0,0.000342,13]
[424929716,1781285445000,-151.0,0.000341,17]
[424929726,1781285445000,-166.0,0.00034326,7]
[424929729,1781285445000,-1416.0,0.0003437,2]
[424929728,1781285445000,-446.986,0.0003437,2]
[424929732,1781285445000,-745.53,0.00034396,18]
[424929731,1781285445000,-745.53,0.00034396,18]
[424929730,1781285445000,-1763.0,0.0003437,2]
[424929734,1781285445000,-745.53,0.00034396,18]
[424929737,1781285445000,-745.53,0.00034396,18]
[424929736,1781285445000,-745.53,0.00034396,18]
[424929733,1781285445000,-745.53,0.00034396,18]
[424929735,1781285445000,-745.53,0.00034396,18]
[424929694,1781285445000,-797.0,0.00034083,7]
[424929738,1781285445000,-745.53,0.00034396,18]
[424929741,1781285445000,-745.63,0.00034396,18]
[424929740,1781285445000,-745.53,0.00034396,18]
[424929742,1781285445000,-11655.09,0.00034396,18]
[424929743,1781285445000,-11655.09,0.00034396,18]
[424929744,1781285445000,-11655.09,0.00034396,18]
[424929745,1781285445000,-11655.09,0.00034396,18]
[424929723,1781285445000,-152.0,0.00034268,7]
[424929718,1781285445000,-152.0,0.00034131,7]
[424929739,1781285445000,-745.53,0.00034396,18]
[424929721,1781285445000,-151.0,0.000342,12]
[424929724,1781285445000,-151.0,0.000343,17]
[424929695,1781285445000,-797.0,0.00034083,7]
[424929696,1781285445000,-797.0,0.00034083,7]
[424929697,1781285445000,-797.0,0.00034083,7]
[424929700,1781285445000,-797.0,0.00034083,7]
[424929701,1781285445000,-797.0,0.00034083,7]
[424929698,1781285445000,-797.0,0.00034083,7]
[424929713,1781285445000,-797.0,0.00034083,7]
[424929710,1781285445000,-797.0,0.00034083,7]
[424929712,1781285445000,-797.0,0.00034083,7]
[424929704,1781285445000,-797.0,0.00034083,7]
[424929699,1781285445000,-797.0,0.00034083,7]
[424929703,1781285445000,-797.0,0.00034083,7]
[424929714,1781285445000,-816.50649184,0.00034083,7]
[424929719,1781285445000,-152.0,0.00034199,7]
[424929722,1781285445000,-151.0,0.000342,12]
[424929715,1781285445000,-151.0,0.000341,15]
[424929711,1781285445000,-797.0,0.00034083,7]
[424929717,1781285445000,-152.0,0.00034131,7]
[424929705,1781285445000,-797.0,0.00034083,7]
[424929709,1781285445000,-797.0,0.00034083,7]
[424929706,1781285445000,-797.0,0.00034083,7]
[424929702,1781285445000,-797.0,0.00034083,7]
[424929708,1781285445000,-797.0,0.00034083,7]
[424929762,1781285446000,-500.0,0.00034497,18]
[424929770,1781285446000,-240.0,0.00034716,2]
[424929780,1781285446000,-244.0,0.00034994,30]
[424929781,1781285446000,-4000.82,0.00034996,30]
[424929769,1781285446000,-157.00528221,0.000345,2]
[424929771,1781285446000,-174.000662,0.00034721,21]
[424929776,1781285446000,-295.21797606,0.00034801,2]
[424929772,1781285446000,-170.103076,0.00034721,21]
[424929774,1781285446000,-169.898668,0.00034721,21]
[424929777,1781285446000,-166.0,0.00034848,7]
[424929779,1781285446000,-1000.0,0.00034994,30]
[424929775,1781285446000,-560.34914058,0.00034779,2]
[424929778,1781285446000,-406.42827931,0.00034892,6]
[424929784,1781285446000,-151.0,0.00035252,30]
[424929782,1781285446000,-3632.6103938,0.00035,2]
[424929773,1781285446000,-736.227564,0.00034721,120]